lending/lending_fUSD_20260206
["ID","MTS","AMOUNT","RATE_DAILY","PERIOD"]
[404625475,1770347392991,5000.01,0.00012537,2]
[404625476,1770347393012,939.751111,0.00012537,2]
[404625477,1770347400261,1876.45,0.00011921,2]
[404625478,1770347403553,2183.808889,0.000125,4]
[404625479,1770347403574,16.191111,0.000125,4]
[404625484,1770347432065,-800.0,0.000126,4]
[404625486,1770347432075,-4500.0,0.000126,4]
[404625488,1770347432084,-1000.0,0.00012699,2]
[404625490,1770347432094,-1200.0,0.00012699,2]
[404625492,1770347432102,-1600.0,0.000127,4]
[404625494,1770347432112,-46712.37338125,0.000127,2]
[404625496,1770347432122,-49264.14515007,0.000127,2]
[404625499,1770347432131,-2175.4589878,0.000127,2]
[404625501,1770347432141,-161.89485574,0.000127,2]
[404625502,1770347432150,-1157.22477913,0.000127,2]
[404625503,1770347432159,-6700.0,0.000127,4]
[404625504,1770347432168,-1065.1054431,0.000127,2]
[404625505,1770347432177,-46712.37338125,0.00012791,2]
[404625506,1770347432187,-151.0,0.00012796,2]
[404625507,1770347432196,-151.0,0.00012796,2]
[404625508,1770347432206,-500.0,0.00012798,2]
[404625509,1770347432215,-500.0,0.00012798,2]
[404625510,1770347432225,-173.52651995,0.00012798,2]
[404625511,1770347432234,-574.73725075,0.00012798,2]
[404625512,1770347432243,-500.0,0.00012798,2]
[404625513,1770347432252,-500.0,0.00012798,2]
[404625514,1770347432261,-436.04658046,0.00012798,2]
[404625515,1770347432271,-500.0,0.00012798,2]
[404625516,1770347432280,-500.0,0.00012798,2]
[404625517,1770347432290,-500.0,0.00012798,2]
[404625518,1770347432299,-500.0,0.00012798,2]
[404625519,1770347432312,-500.0,0.00012798,2]
[404625520,1770347432322,-500.0,0.00012798,2]
[404625521,1770347432331,-500.0,0.00012798,2]
[404625522,1770347432341,-500.0,0.00012798,2]
[404625523,1770347432351,-500.0,0.00012798,2]
[404625524,1770347432360,-334.05500195,0.00012798,2]
[404625525,1770347432369,-500.0,0.00012798,2]
[404625526,1770347432379,-500.0,0.00012798,2]
[404625527,1770347432388,-150.0,0.00012798,2]
[404625528,1770347432397,-500.0,0.00012798,2]
[404625529,1770347432407,-1200.80286715,0.00012798,3]
[404625530,1770347432417,-1200.80286715,0.00012798,3]
[404625531,1770347432427,-1200.80286714,0.00012798,3]
[404625532,1770347432439,-49264.14515,0.00012799,2]
[404625533,1770347432449,-41425.04564668,0.00012799,2]
[404625534,1770347432461,-7668.74905872,0.00012799,2]
[404625535,1770347432485,-14834.4396507,0.00012799,2]
[404625536,1770347432546,-993.486,0.00012799,2]
[404625537,1770347432561,-3180.49739108,0.00012799,2]
[404625538,1770347432662,-20205.32129682,0.00012799,2]
[404625539,1770347432673,-895.86861586,0.00012799,2]
[404625540,1770347433518,700.0,0.000125,4]
[404625541,1770347435841,-1500.0,0.000126,4]
[404625548,1770347438109,-985.68254733,0.000127,4]
[404625549,1770347438218,-1000.0,0.000127,4]
[404625550,1770347438273,-214.31745267,0.000127,4]
[404625551,1770347438283,-1132.68254729,0.00012799,2]
[404625552,1770347438294,-46609.63010099,0.00012799,2]
[404625553,1770347440115,-657823.65638001,0.00012799,2]
[404625554,1770347440171,-319.00137771,0.00012799,2]
[404625555,1770347440468,-2965.83353822,0.00012799,2]
[404625556,1770347440481,-5668.37361862,0.00012799,2]
[404625557,1770347440493,-4201.69291148,0.00012799,2]
[404625558,1770347440513,-238369.69105399,0.00012799,2]
[404625577,1770347443850,-5053.65520259,0.00012799,2]
[404625578,1770347443863,-1584.90943152,0.00012799,2]
[404625579,1770347444722,-388.380008,0.00012799,2]
[404625580,1770347444734,-39898.90510097,0.00012799,2]
[404625582,1770347444915,-907.21176985,0.00012799,2]
[404625587,1770347446368,-485.5246568,0.00012799,2]
[404625588,1770347446380,-446.67,0.00012799,2]
[404625589,1770347446391,-2038.76620611,0.00012799,2]
[404625604,1770347446780,-3609.06,0.00012799,2]
[404625605,1770347483552,150.0,0.00012708,2]
[404625606,1770347483889,150.0,0.00012708,2]
[404625607,1770347483999,500.0,0.00012708,2]
[404625608,1770347484152,150.0,0.00012708,2]
[404625609,1770347484477,500.0,0.00012708,2]
[404625610,1770347484586,500.0,0.00012708,2]
[404625611,1770347484646,150.0,0.00012708,2]
[404625612,1770347484920,500.0,0.00012708,2]
[404625613,1770347485685,150.0,0.00012708,2]
[404625614,1770347486115,500.0,0.00012708,2]
[404625615,1770347492155,6312.475,0.00012543,2]
[404625616,1770347492184,437.535,0.00012543,2]
[404625617,1770347492206,127.266,0.00012543,2]
[404625618,1770347532589,167.37,0.000127,2]
[404625619,1770347533826,150.0,0.00012708,2]
[404625620,1770347541040,4682.64,0.000126,2]
[404625621,1770347541069,5000.01,0.000126,2]
[404625622,1770347541093,5000.01,0.000126,2]
[404625623,1770347541117,5000.01,0.000126,2]
[404625624,1770347541146,5000.01,0.000126,2]
[404625625,1770347541172,5000.01,0.000126,2]
[404625626,1770347541196,5000.01,0.000126,2]
[404625627,1770347541220,5000.01,0.000126,2]
[404625628,1770347541246,5000.01,0.000126,2]
[404625629,1770347541270,5000.01,0.000126,2]
[404625630,1770347541296,9872.744,0.000126,2]
[404625631,1770347541322,10000.01,0.000126,2]
[404625632,1770347541348,10000.01,0.000126,2]
[404625633,1770347541377,10000.01,0.000126,2]
[404625634,1770347541407,10000.01,0.000126,2]
[404625635,1770347541433,10000.01,0.000126,2]
[404625636,1770347541461,10000.01,0.000126,2]
[404625637,1770347541489,10000.01,0.000126,2]
[404625638,1770347541518,10000.01,0.000126,2]
[404625639,1770347541546,10000.01,0.000126,2]
[404625640,1770347546364,166.66,0.00012333,2]
[404625641,1770347549744,-1220.24909325,0.000126,2]
[404625642,1770347549839,-5000.01,0.000126,2]
[404625643,1770347549938,-5000.01,0.000126,2]
[404625644,1770347550032,-5000.01,0.000126,2]
[404625645,1770347550126,-5000.01,0.000126,2]
[404625646,1770347550283,-5000.01,0.000126,2]
[404625647,1770347550400,-5000.01,0.000126,2]
[404625648,1770347550493,-5000.01,0.000126,2]
[404625649,1770347550651,-5000.01,0.000126,2]
[404625650,1770347550756,-5000.01,0.000126,2]
[404625651,1770347553108,-500.0,0.00012599,2]
[404625652,1770347553142,-500.0,0.00012599,2]
[404625653,1770347553171,-500.0,0.00012599,2]
[404625654,1770347553199,-500.0,0.00012599,2]
[404625655,1770347553398,-505.23260633,0.00012599,2]
[404625656,1770347553429,-252.31607552,0.00012599,2]
[404625657,1770347553457,-500.0,0.00012599,2]
[404625658,1770347553489,-500.0,0.00012599,2]
[404625659,1770347553516,-500.0,0.00012599,2]
[404625660,1770347553546,-500.0,0.00012599,2]
[404625661,1770347553575,-188.83850137,0.00012599,2]
[404625662,1770347553751,-500.0,0.00012599,2]
[404625663,1770347553781,-500.0,0.00012599,2]
[404625664,1770347554318,-2850.38833728,0.000126,2]
[404625665,1770347554343,-10000.01,0.000126,2]
[404625666,1770347554417,-10000.01,0.000126,2]
[404625667,1770347554550,-10000.01,0.000126,2]
[404625668,1770347554720,-10000.01,0.000126,2]
[404625669,1770347554837,-10000.01,0.000126,2]
[404625670,1770347555788,-5000.01,0.000126,2]
[404625671,1770347555840,-10000.01,0.000126,2]
[404625672,1770347555897,-5000.01,0.000126,2]
[404625673,1770347555956,-10000.01,0.000126,2]
[404625674,1770347555988,-5000.01,0.000126,2]
[404625675,1770347556076,-5000.01,0.000126,2]
[404625676,1770347556182,-5000.01,0.000126,2]
[404625677,1770347556311,-5000.01,0.000126,2]
[404625678,1770347556422,-5000.01,0.000126,2]
[404625679,1770347556575,-5000.01,0.000126,2]
[404625680,1770347556705,-5000.01,0.000126,2]
[404625681,1770347556822,-5000.01,0.000126,2]
[404625682,1770347558860,-10000.01,0.000126,2]
[404625683,1770347558981,-10000.01,0.000126,2]
[404625684,1770347559155,-10000.01,0.000126,2]
[404625685,1770347559332,-10000.01,0.000126,2]
[404625686,1770347559409,-10000.01,0.000126,2]
[404625687,1770347559507,-10000.01,0.000126,2]
[404625688,1770347563426,500.0,0.000125,4]
[404625689,1770347577258,-450.0,0.00012599,2]
[404625690,1770347577294,-9100.01,0.000126,2]
[404625691,1770347583382,-10000.01,0.000126,2]
[404625692,1770347599262,1581.64039934,0.000125,2]
[404625693,1770347601622,-3341.992148,0.00012537,2]
[404625694,1770347601650,-151.0,0.00012597,2]
[404625695,1770347601695,-3014.025704,0.000126,2]
[404625696,1770347601813,-10000.01,0.000126,2]
[404625697,1770347601981,-10000.01,0.000126,2]
[404625698,1770347602109,-10000.01,0.000126,2]
[404625699,1770347602211,-10000.01,0.000126,2]
[404625700,1770347602317,-10000.01,0.000126,2]
[404625701,1770347602406,-10000.01,0.000126,2]
[404625702,1770347602508,-10000.01,0.000126,2]
[404625703,1770347602598,-10000.01,0.000126,2]
[404625704,1770347607489,-10000.01,0.000126,2]
[404625705,1770347607599,-10000.01,0.000126,2]
[404625706,1770347607731,-10000.01,0.000126,2]
[404625707,1770347607844,-10000.01,0.000126,2]
[404625708,1770347607962,-10000.01,0.000126,2]
[404625709,1770347608143,-10000.01,0.000126,2]
[404625710,1770347608256,-10000.01,0.000126,2]
[404625711,1770347608370,-10000.01,0.000126,2]
[404625712,1770347608510,-10000.01,0.000126,2]
[404625713,1770347637274,40978.96700333,0.000125,2]
[404625714,1770347668937,500.0,0.00012437,2]
[404625715,1770347680182,710.0702954,0.000125,2]
[404625716,1770347686525,1172.12434683,0.000125,2]
[404625718,1770347719555,1054.4269329,0.000125,2]
[404625719,1770347727887,157.79972236,0.000125,2]
[404625720,1770347729377,1000.0,0.000125,2]
[404625721,1770347735244,1403.338,0.000125,2]
[404625722,1770347756607,12521.29,0.00011816,2]
[404625723,1770347756869,4362.12791095,0.00012473,2]
[404625724,1770347776195,199.83783157,0.000125,2]
[404625725,1770347804854,33691.71755732,0.000125,2]
[404625726,1770347840210,763.36,0.00011747,2]
[404625727,1770347844851,361.32,0.00012374,2]
[404625728,1770347879880,3524.82,0.00011741,2]
[404625729,1770347896299,9718.08,0.00011233,2]
[404625730,1770347903050,-500.0,0.00012437,2]
[404625731,1770347903081,-250.0,0.00012468,2]
[404625732,1770347903118,-302.01090711,0.00012468,2]
[404625733,1770347903158,-300.0,0.00012499,2]
[404625734,1770347903190,-300.0,0.00012499,2]
[404625735,1770347903408,-6616.59818578,0.000125,2]
[404625736,1770347903451,-3573.32948239,0.000125,2]
[404625737,1770347903484,-152.7008465,0.000125,2]
[404625738,1770347903516,-473.38019692,0.000125,2]
[404625739,1770347903804,-1601.18894838,0.000125,2]
[404625740,1770347903847,-1601.19894838,0.000125,2]
[404625741,1770347903902,-6797.61210324,0.000125,2]
[404625742,1770347908976,-232.0,0.00012499,2]
[404625743,1770347909011,-702.9512886,0.000125,2]
[404625744,1770347909061,-8130.1074228,0.000125,2]
[404625745,1770347909097,-10000.01,0.000125,2]
[404625746,1770347912025,-10000.01,0.000125,2]
[404625747,1770347912159,-10000.01,0.000125,2]
[404625748,1770347916798,-526.62125287,0.00012499,2]
[404625749,1770347916825,-500.0,0.00012499,2]
[404625750,1770347916851,-500.0,0.00012499,2]
[404625751,1770347916879,-297.18695096,0.00012499,2]
[404625752,1770347916908,-203.66282443,0.00012499,2]
[404625753,1770347916936,-445.06794348,0.00012499,2]
[404625754,1770347917179,-54.93205652,0.00012499,2]
[404625755,1770347917206,-500.0,0.00012499,2]
[404625756,1770347917234,-500.0,0.00012499,2]
[404625757,1770347917260,-500.0,0.00012499,2]
[404625758,1770347917287,-500.0,0.00012499,2]
[404625759,1770347917317,-291.5159924,0.00012499,2]
[404625760,1770347917435,-500.0,0.00012499,2]
[404625761,1770347917464,-500.0,0.00012499,2]
[404625762,1770347917493,-500.0,0.00012499,2]
[404625763,1770347917719,-500.0,0.00012499,2]
[404625764,1770347917750,-500.0,0.00012499,2]
[404625765,1770347917856,-500.0,0.00012499,2]
[404625766,1770347917885,-500.0,0.00012499,2]
[404625767,1770347917917,-540.41365358,0.00012499,2]
[404625768,1770347917946,-500.0,0.00012499,2]
[404625769,1770347917975,-419.18269284,0.00012499,2]
[404625770,1770347918093,-80.81730716,0.00012499,2]
[404625771,1770347918123,-500.0,0.00012499,2]
[404625772,1770347918156,-500.0,0.00012499,2]
[404625773,1770347918185,-500.0,0.00012499,2]
[404625774,1770347918214,-500.0,0.00012499,2]
[404625775,1770347918243,-338.37538568,0.00012499,2]
[404625776,1770347918288,-161.62461432,0.00012499,2]
[404625777,1770347918318,-500.0,0.00012499,2]
[404625778,1770347918348,-500.0,0.00012499,2]
[404625779,1770347918379,-500.0,0.00012499,2]
[404625780,1770347918416,-500.0,0.00012499,2]
[404625781,1770347918446,-176.76077136,0.00012499,2]
[404625782,1770347919453,-323.23922864,0.00012499,2]
[404625783,1770347919483,-500.0,0.00012499,2]
[404625784,1770347919512,-500.0,0.00012499,2]
[404625785,1770347919542,-500.0,0.00012499,2]
[404625786,1770347945905,315.58679796,0.000124,2]
[404625787,1770347954334,151.0,0.00012497,2]
[404625788,1770347959933,3801.97085906,0.000124,2]
[404625789,1770347961913,500.0,0.00012473,2]
[404625790,1770347962767,150.0,0.00012473,2]
[404625791,1770347967084,1191.7451369,0.000124,2]
[404625792,1770347969612,455.34966412,0.000124,2]
[404625793,1770347987639,500.0,0.000124,2]
[404625794,1770348001299,1200.0,0.00012499,2]
[404625795,1770348001844,-1000.0,0.000126,4]
[404625796,1770348001869,-150.0,0.00012626,4]
[404625797,1770348001893,-169.59649509,0.00012626,4]
[404625798,1770348001918,-235.49802766,0.00012681,4]
[404625799,1770348001946,-1500.0,0.000127,4]
[404625800,1770348001972,-2400.0,0.000128,4]
[404625801,1770348001997,-9000.0,0.000128,4]
[404625802,1770348002021,-3000.0,0.000128,4]
[404625803,1770348002045,-2000.0,0.000128,4]
[404625804,1770348002071,-3200.0,0.000129,4]
[404625805,1770348002096,-11200.0,0.000129,4]
[404625806,1770348002120,-3700.0,0.000129,4]
[404625807,1770348002148,-2500.0,0.000129,4]
[404625808,1770348006494,-10000.01,0.000125,2]
[404625809,1770348006692,-10000.01,0.000125,2]
[404625810,1770348006816,-10000.01,0.000125,2]
[404625811,1770348007689,342.910753,7.945e-05,2]
[404625812,1770348012416,-10000.01,0.000125,2]
[404625813,1770348012545,-10000.01,0.000125,2]
[404625814,1770348012655,-10000.01,0.000125,2]
[404625815,1770348023607,660.00444598,0.000124,2]
[404625816,1770348023629,5000.01,0.000124,2]
[404625817,1770348023666,5000.01,0.000124,2]
[404625818,1770348035698,5000.01,0.00011783,2]
[404625819,1770348035724,4138.68,0.00011783,2]
[404625821,1770348150362,216.74,0.00011634,2]
[404625822,1770348194532,932.049024,0.00012238,2]
[404625823,1770348230987,8851.220976,0.0001163,2]
[404625824,1770348231014,10000.01,0.0001163,2]
[404625825,1770348231040,1593.209024,0.0001163,2]
[404625826,1770348324224,1029.68956309,0.000108,2]
[404625827,1770348383808,500.0,0.00011579,2]
[404625828,1770348395580,172.2,9.257e-05,2]
[404625829,1770348430427,260.29161735,0.000101,2]
[404625830,1770348453493,1300.0,0.000115,4]
[404625831,1770348456189,2600.0,0.000116,4]
[404625832,1770348458281,3900.0,0.000117,4]
[404625833,1770348460367,5200.0,0.000118,4]
[404625834,1770348462465,6500.0,0.000119,4]
[404625835,1770348464542,1300.0,0.000129,4]
[404625836,1770348482453,168.99497017,0.00012199,2]
[404625837,1770348493098,1934.90820227,0.0001,2]
[404625838,1770348504551,2740.47292956,0.0001,2]
[404625839,1770348507373,268.76089012,0.000107,2]
[404625840,1770348509165,199.89597849,0.000122,2]
[404625841,1770348514434,1131.58682495,0.0001,2]
[404625842,1770348514456,10000.01,0.0001,2]
[404625843,1770348514478,8323.88834174,0.0001,2]
[404625844,1770348536730,200.0,0.00011552,2]
[404625845,1770348539132,1042.77699477,0.000122,2]
[404625846,1770348561884,224.82149865,0.000122,2]
[404625847,1770348574664,208.52316484,0.000122,2]
[404625848,1770348574691,633.21779623,0.000122,2]
[404625849,1770348581021,7292.14893801,0.000122,2]
[404625850,1770348610377,271.31426798,0.000122,2]
[404625851,1770348617154,682.49719035,0.000122,2]
[404625871,1770348632341,-500.0,0.00012273,2]
[404625872,1770348632351,-150.0,0.00012273,2]
[404625873,1770348632360,-251.0,0.00012273,2]
[404625874,1770348632369,-151.0,0.00012297,2]
[404625875,1770348632379,-1200.0,0.00012298,2]
[404625876,1770348632387,-300.0,0.00012299,2]
[404625877,1770348632398,-300.0,0.00012299,2]
[404625878,1770348632408,-300.0,0.00012299,2]
[404625879,1770348632417,-150.0,0.00012299,2]
[404625880,1770348632426,-492.81890971,0.00012299,2]
[404625881,1770348632436,-500.0,0.00012299,2]
[404625882,1770348632445,-500.0,0.00012299,2]
[404625883,1770348632455,-337.81799435,0.00012299,2]
[404625884,1770348632468,-368.634877,0.00012299,2]
[404625885,1770348632477,-250.0,0.000123,2]
[404625886,1770348632496,-837.72936262,0.000123,2]
[404625887,1770348632507,-14291.43841142,0.000123,2]
[404625890,1770348632527,-31817.90658542,0.000123,2]
[404625892,1770348632536,-35815.06785839,0.000123,2]
[404625893,1770348632545,-30470.4304656,0.000123,2]
[404625895,1770348632556,-106498.261048,0.000123,2]
[404625915,1770348638214,-128698.98658748,0.000123,2]
[404625916,1770348638428,-3071.39403773,0.000123,2]
[404625917,1770348639508,199.89597848,0.000122,2]
[404625924,1770348640281,-597.032921,0.000123,2]
[404625937,1770348640495,-3230663.89494019,0.000123,2]
[404625938,1770348640506,-4123.751,0.000123,2]
[404625939,1770348640515,-2500.0,0.000123,2]
[404625940,1770348640525,-793749.69409515,0.000123,2]
[404625941,1770348640556,-2299.1,0.000123,2]
[404625948,1770348644635,-500.0,0.00012299,2]
[404625949,1770348644646,-134.43867938,0.00012299,2]
[404625951,1770348645138,-365.56132062,0.00012299,2]
[404625952,1770348645148,-500.0,0.00012299,2]
[404625953,1770348645158,-500.0,0.00012299,2]
[404625954,1770348645168,-308.03086567,0.00012299,2]
[404625955,1770348645177,-187.44055792,0.00012299,2]
[404625959,1770348646348,-312.55944208,0.00012299,2]
[404625960,1770348646359,-1560.6461878,0.000123,2]
[404625961,1770348646402,-4900.0,0.000123,2]
[404625975,1770348646905,-3194.589762,0.000123,2]
[404625977,1770348646919,-3418.5115,0.000123,2]
[404625979,1770348646931,-1000.0,0.000123,2]
[404625982,1770348651950,5000.01,0.000122,2]
[404625983,1770348651974,5000.01,0.000122,2]
[404625984,1770348652003,920.93582895,0.000122,2]
[404625985,1770348652029,10000.01,0.000122,2]
[404625986,1770348652054,10000.01,0.000122,2]
[404625987,1770348652079,10000.01,0.000122,2]
[404625988,1770348652104,10000.01,0.000122,2]
[404625989,1770348652128,10000.01,0.000122,2]
[404625990,1770348652153,10000.01,0.000122,2]
[404625991,1770348652177,10000.01,0.000122,2]
[404625992,1770348652201,10000.01,0.000122,2]
[404625993,1770348652226,10000.01,0.000122,2]
[404625997,1770348692141,5187.857654,0.00011956,2]
[404625998,1770348692163,953.122346,0.00011956,2]
[404625999,1770348692203,536.488,0.00011956,2]
[404626000,1770348701276,4861.43262534,0.000121,2]
[404626001,1770348737472,500.0,0.000152,30]
[404626002,1770348738724,500.0,0.000152,30]
[404626003,1770348739282,500.0,0.000152,30]
[404626004,1770348739847,500.0,0.000152,30]
[404626005,1770348740424,500.0,0.000152,30]
[404626006,1770348741005,500.0,0.000152,30]
[404626007,1770348742414,1759.41,0.0001151,2]
[404626008,1770348747386,454.9981269,0.000121,2]
[404626009,1770348759774,199.89597848,0.000121,2]
[404626010,1770348773298,150.0,0.00011532,2]
[404626011,1770348777804,883.99608815,0.000121,2]
[404626012,1770348800870,5000.01,0.000121,2]
[404626013,1770348800891,5000.01,0.000121,2]
[404626014,1770348800913,5000.01,0.000121,2]
[404626015,1770348800939,9116.01391185,0.000121,2]
[404626016,1770348800962,8210.21264831,0.000121,2]
[404626017,1770348820040,912.42987045,0.000121,2]
[404626018,1770348821405,877.36748124,0.000121,2]
[404626019,1770348821430,2363.58760232,0.000121,2]
[404626020,1770348825318,7636.42239768,0.000121,2]
[404626021,1770348825340,10000.01,0.000121,2]
[404626022,1770348825361,10000.01,0.000121,2]
[404626023,1770348825384,10000.01,0.000121,2]
[404626024,1770348825409,3876.11736378,0.000121,2]
[404626025,1770348837012,6123.89263622,0.000121,2]
[404626026,1770348837035,7104.45106378,0.000121,2]
[404626027,1770348846735,377.771101,0.00012112,2]
[404626028,1770348871206,5519.2,0.00011499,2]
[404626029,1770348877948,303.3320846,0.000121,2]
[404626030,1770348941608,2160.63672236,0.000121,2]
[404626031,1770348942769,1639.07009204,0.000121,2]
[404626032,1770348942795,10000.01,0.000121,2]
[404626033,1770348942823,10000.01,0.000121,2]
[404626034,1770348942847,10000.01,0.000121,2]
[404626035,1770349035953,500.0,0.000152,30]
[404626036,1770349036515,500.0,0.000152,30]
[404626037,1770349037087,500.0,0.000152,30]
[404626038,1770349037651,500.0,0.000152,30]
[404626039,1770349061808,1440.42448158,0.00012,2]
[404626040,1770349073047,152.7008465,0.00012,2]
[404626042,1770349102145,798.3761366,0.00012,2]
[404626043,1770349118292,150.0,0.00011452,2]
[404626044,1770349118504,150.0,0.00011452,120]
[404626045,1770349144312,202.22138974,0.00012,2]
[404626046,1770349182029,960.28298772,0.00012,2]
[404626048,1770349187200,6296.00415786,0.00012,2]
[404626049,1770349187224,10000.01,0.00012,2]
[404626050,1770349187247,10000.01,0.00012,2]
[404626051,1770349187271,2797.60674623,0.00012,2]
[404626052,1770349292182,4912.784,0.0001176,2]
[404626053,1770349292216,429.19,0.0001176,2]
[404626056,1770349345146,9888.93,0.00011284,2]
[404626057,1770349376917,1000.0,0.00011253,2]
[404626058,1770349379341,151.86,0.00011253,2]
[404626059,1770349429250,5000.01,0.00011335,2]
[404626060,1770349433106,-117.29173586,0.00011335,2]
[404626061,1770349433134,-1477.76347483,0.00011335,2]
[404626062,1770349436182,-1809.89957862,0.00011335,2]
[404626063,1770349436208,-225.79813592,0.00011335,2]
[404626064,1770349438992,-928.61457092,0.00011335,2]
[404626065,1770349468235,1600.0,0.00011197,2]
[404626066,1770349471495,3319.345565,0.00011288,2]
[404626067,1770349478559,172.0,5.5e-07,2]
[404626068,1770349508459,3756.804435,7.945e-05,2]
[404626069,1770349508484,297.846285,7.945e-05,2]
[404626071,1770349555074,174.92,0.00011335,2]
[404626072,1770349590347,515.98,0.0002,30]
[404626073,1770349607122,-196.46008117,0.00011345,2]
[404626075,1770349634694,300.0,0.000115,4]
[404626076,1770349636781,700.0,0.000116,4]
[404626077,1770349638911,1100.0,0.000117,4]
[404626078,1770349641013,1500.0,0.000118,4]
[404626079,1770349643100,1900.0,0.000119,4]
[404626081,1770349735730,166.66,0.00010959,2]
[404626082,1770349735945,166.66,0.00011105,2]
[404626083,1770349736174,166.66,0.00011252,2]
[404626086,1770349767231,157.91,0.00011053,2]
[404626087,1770349815811,152.0,0.00012561,3]
[404626093,1770349831561,-918.949,0.00011345,2]
[404626094,1770349831579,-737.01091883,0.00011345,2]
[404626095,1770349831589,-243.0,0.00011345,2]
[404626096,1770349831599,-208.64526853,0.00011359,2]
[404626097,1770349831608,-166.66,0.00011398,2]
[404626098,1770349831617,-250.0,0.00011459,2]
[404626099,1770349831626,-166.66,0.00011544,2]
[404626100,1770349831636,-166.66,0.0001169,2]
[404626101,1770349831645,-562.21671311,0.0001175,2]
[404626102,1770349831656,-319.64866812,0.0001175,2]
[404626103,1770349831668,-40.71145919,0.0001175,2]
[404626104,1770349831678,-500.0,0.00011773,2]
[404626105,1770349831687,-150.0,0.00011773,2]
[404626106,1770349831696,-151.0,0.00011797,2]
[404626107,1770349831705,-208.64526852,0.00011797,2]
[404626108,1770349831715,-640.18865848,0.00011797,2]
[404626109,1770349831724,-300.0,0.00011798,2]
[404626110,1770349831736,-150.0,0.00011798,2]
[404626111,1770349831746,-300.0,0.00011798,2]
[404626112,1770349831755,-300.0,0.00011798,2]
[404626113,1770349831764,-1200.0,0.00011798,2]
[404626114,1770349831773,-258.04441391,0.00011799,2]
[404626116,1770349831782,-344.9732368,0.00011799,2]
[404626118,1770349831791,-500.0,0.00011799,2]
[404626119,1770349831800,-500.0,0.00011799,2]
[404626121,1770349831810,-465.62160597,0.00011799,2]
[404626122,1770349831819,-500.0,0.00011799,2]
[404626123,1770349831828,-500.0,0.00011799,2]
[404626124,1770349831837,-500.0,0.00011799,2]
[404626125,1770349831846,-296.16796042,0.00011799,2]
[404626126,1770349831858,-253.83203958,0.00011799,2]
[404626127,1770349831867,-500.0,0.00011799,2]
[404626128,1770349831877,-500.0,0.00011799,2]
[404626129,1770349831886,-500.0,0.00011799,2]
[404626130,1770349831895,-246.16796042,0.00011799,2]
[404626131,1770349831910,-253.83203958,0.00011799,2]
[404626132,1770349831920,-500.0,0.00011799,2]
[404626133,1770349831929,-260.1934105,0.00011799,2]
[404626134,1770349831940,-239.8065895,0.00011799,2]
[404626135,1770349831949,-176.29185224,0.00011799,2]
[404626136,1770349831961,-323.70814776,0.00011799,2]
[404626137,1770349831970,-256.39766843,0.00011799,2]
[404626138,1770349831980,-500.0,0.00011799,2]
[404626139,1770349831992,-470.91939338,0.00011799,2]